fUST/lending_fUST_20240820
["ID","MTS","AMOUNT","RATE_DAILY","PERIOD"]
[335309804,1724097060269,-1889.37,0.00017534,2]
[335309805,1724097060278,-504.95696497,0.00017534,2]
[335309806,1724097060288,-527.1,0.00017534,2]
[335309807,1724097060297,-622.69,0.00017534,2]
[335309808,1724097060307,-287.078398,0.00017534,2]
[335309809,1724097060317,-287.078404,0.00017534,2]
[335309810,1724097060326,-500.0,0.00017534,2]
[335309811,1724097060336,-412.401712,0.00017534,2]
[335309812,1724097060345,-500.0,0.00017534,2]
[335309813,1724097060354,-500.0,0.00017534,2]
[335309814,1724097060364,-412.401711,0.00017534,2]
[335309815,1724097060374,-151.0,0.00017534,2]
[335309816,1724097060383,-500.0,0.00017534,2]
[335309817,1724097060392,-500.0,0.00017534,2]
[335309818,1724097060402,-500.0,0.00017534,2]
[335309819,1724097060412,-500.0,0.00017534,2]
[335309820,1724097060422,-521.76496908,0.00017534,2]
[335309821,1724097060431,-500.0,0.00017534,2]
[335309822,1724097060440,-500.0,0.00017534,2]
[335309823,1724097060449,-246.66122876,0.00017534,2]
[335309824,1724097060458,-846.97,0.00017534,2]
[335309825,1724097060468,-500.0,0.00017534,2]
[335309826,1724097060482,-201.45725094,0.00017534,2]
[335309827,1724097060491,-500.0,0.00017534,2]
[335309828,1724097060500,-500.0,0.00017534,2]
[335309829,1724097060510,-1133.39,0.00017534,2]
[335309830,1724097060520,-4716.08,0.00017534,2]
[335309831,1724097060530,-608.02742381,0.00017534,2]
[335309832,1724097060540,-500.0,0.00017534,2]
[335309833,1724097060550,-500.0,0.00017534,2]
[335309834,1724097060560,-500.0,0.00017534,2]
[335309835,1724097060569,-260.82989,0.00017534,2]
[335309836,1724097060578,-500.0,0.00017534,2]
[335309837,1724097060588,-500.0,0.00017534,2]
[335309838,1724097060597,-500.0,0.00017534,2]
[335309839,1724097060607,-260.829887,0.00017534,2]
[335309840,1724097060617,-500.0,0.00017534,2]
[335309841,1724097060626,-500.0,0.00017534,2]
[335309842,1724097060635,-616.5,0.00017534,2]
[335309843,1724097060647,-500.0,0.00017534,2]
[335309844,1724097060660,-500.0,0.00017534,2]
[335309845,1724097060672,-500.0,0.00017534,2]
[335309846,1724097060683,-375.52848703,0.00017534,2]
[335309847,1724097060694,-500.0,0.00017534,2]
[335309848,1724097060703,-500.0,0.00017534,2]
[335309849,1724097060714,-500.0,0.00017534,2]
[335309850,1724097060724,-518.3864646,0.00017534,2]
[335309851,1724097060735,-792.68,0.00017534,2]
[335309852,1724097060747,-358.731823,0.00017534,2]
[335309853,1724097060759,-500.0,0.00017534,2]
[335309854,1724097060770,-358.731814,0.00017534,2]
[335309855,1724097060781,-500.0,0.00017534,2]
[335309856,1724097060791,-500.0,0.00017534,2]
[335309857,1724097060802,-500.0,0.00017534,2]
[335309858,1724097060813,-315.83964841,0.00017534,2]
[335309859,1724097060823,-649.6,0.00017534,2]
[335309860,1724097060833,-500.0,0.00017534,2]
[335309861,1724097060843,-500.0,0.00017534,2]
[335309862,1724097060854,-577.76488072,0.00017534,2]
[335309863,1724097060865,-567.42,0.00017534,2]
[335309864,1724097060876,-500.0,0.00017534,2]
[335309865,1724097060887,-446.98706339,0.00017534,2]
[335309866,1724097060900,-2339.16,0.00017534,2]
[335309867,1724097060917,-1205.74,0.00017534,2]
[335309868,1724097060931,-500.0,0.00017534,2]
[335309869,1724097060941,-500.0,0.00017534,2]
[335309870,1724097060954,-500.0,0.00017534,2]
[335309871,1724097060965,-305.68002084,0.00017534,2]
[335309872,1724097060974,-500.0,0.00017534,2]
[335309873,1724097060985,-603.53356319,0.00017534,2]
[335309874,1724097060996,-1005.48,0.00017534,2]
[335309875,1724097061007,-183.74326121,0.00017534,2]
[335309876,1724097061018,-1152.0,0.00017552,2]
[335309877,1724097061029,-500.0,0.00017808,2]
[335309878,1724097061041,-500.0,0.00017808,2]
[335309879,1724097061051,-500.0,0.00017808,2]
[335309880,1724097061062,-500.0,0.00017808,2]
[335309881,1724097061073,-478.95682808,0.00017808,2]
[335309882,1724097061084,-500.0,0.00017808,2]
[335309883,1724097061095,-500.0,0.00017808,2]
[335309884,1724097061106,-220.94795572,0.00017808,2]
[335309885,1724097061116,-592.31273286,0.00017808,2]
[335309886,1724097061126,-500.0,0.00017808,2]
[335309887,1724097061135,-500.0,0.00017808,2]
[335309888,1724097061146,-500.0,0.00017808,2]
[335309889,1724097061155,-158.7411015,0.00017808,2]
[335309890,1724097061169,-500.0,0.00017808,2]
[335309891,1724097061180,-500.0,0.00017808,2]
[335309892,1724097061190,-500.0,0.00017808,2]
[335309893,1724097061202,-500.0,0.00017808,2]
[335309894,1724097061212,-500.0,0.00017808,2]
[335309895,1724097061222,-500.0,0.00017808,2]
[335309896,1724097061234,-637.9,0.00017808,2]
[335309897,1724097061246,-500.0,0.00017808,2]
[335309898,1724097061258,-500.0,0.00017808,2]
[335309899,1724097061269,-500.0,0.00017808,2]
[335309900,1724097061280,-343.80530895,0.00017808,2]
[335309903,1724097175574,240.00720857,0.0001,2]
[335309904,1724097192279,915.9545404,0.0001,2]
[335309906,1724097255811,154.69833824,0.0001,2]
[335309907,1724097343321,248.04862001,0.0001,2]
[335309923,1724098009367,154.8898457,9.999e-05,2]
[335309924,1724098030144,-521.29251267,0.00010081,2]
[335309925,1724098030186,-285.57873209,0.00010081,2]
[335309926,1724098033105,-315.3070422,0.00010081,2]
[335309927,1724098033132,-176.39332573,0.00010544,2]
[335309928,1724098033159,-222.44078643,0.00010544,2]
[335309929,1724098033184,-215.09339058,0.00010739,2]
[335309930,1724098033210,-300.0,0.00011986,2]
[335309931,1724098033236,-174.79506306,0.00011987,2]
[335309932,1724098033262,-2626.00815325,0.00011987,2]
[335309986,1724098231719,-187.92863013,0.00010081,2]
[335309989,1724098231730,-175.0,0.00010799,2]
[335309991,1724098231740,-175.0,0.00010829,2]
[335309993,1724098231751,-175.0,0.00010858,2]
[335309995,1724098231763,-175.0,0.00010888,2]
[335309997,1724098231773,-175.0,0.00010918,2]
[335309999,1724098231784,-175.0,0.00010947,2]
[335310001,1724098231793,-175.0,0.00010977,2]
[335310003,1724098231803,-175.0,0.00011006,2]
[335310005,1724098231812,-175.0,0.00011036,2]
[335310007,1724098231822,-175.0,0.00011066,2]
[335310009,1724098231833,-175.0,0.00011095,2]
[335310011,1724098231842,-175.0,0.00011125,2]
[335310013,1724098231854,-300.0,0.00011151,2]
[335310015,1724098231864,-10773.4378429,0.00011152,2]
[335310018,1724098231873,-175.0,0.00011154,2]
[335310020,1724098231883,-175.0,0.00011184,2]
[335310022,1724098231893,-175.0,0.00011214,2]
[335310025,1724098231903,-175.0,0.00011243,2]
[335310026,1724098231913,-175.0,0.00011273,2]
[335310027,1724098231922,-175.0,0.00011303,2]
[335310028,1724098231935,-175.0,0.00011332,2]
[335310029,1724098231946,-175.0,0.00011362,2]
[335310030,1724098231957,-25769.67952074,0.00011409,2]
[335310069,1724098237698,-323.81791502,0.00011409,2]
[335310094,1724098240057,-5566.61413605,0.00011409,2]
[335310095,1724098240068,-2166.25640825,0.00011731,2]
[335310096,1724098240077,-639.84526611,0.00011731,2]
[335310097,1724098240087,-223.44653164,0.00011731,2]
[335310098,1724098240096,-35152.1669323,0.00011842,2]
[335310099,1724098240106,-6019.33215596,0.00011999,2]
[335310147,1724098635818,272.65251085,0.0001,2]
[335310149,1724098669863,3594.56006351,0.0001,2]
[335310150,1724098674738,218.62299037,0.0001,2]
[335310151,1724098716043,1087.61726092,0.0001,2]
[335310152,1724098719465,214.75801558,0.0001,2]
[335310154,1724098807308,4142.72437601,0.0001,2]
[335310155,1724098826424,8844.39705201,9.939e-05,2]
[335310156,1724098844061,6735.93302961,0.0001,2]
[335310169,1724098938997,3092.64278727,9.939e-05,2]
[335310175,1724099112467,1612.52149645,9.999e-05,2]
[335310176,1724099127886,24900.0,9.612e-05,2]
[335310180,1724099160915,250.0,9.575e-05,2]
[335310181,1724099161144,250.0,9.601e-05,2]
[335310183,1724099161387,250.0,9.628e-05,2]
[335310184,1724099161635,250.0,9.654e-05,2]
[335310185,1724099161895,250.0,9.68e-05,2]
[335310186,1724099162111,250.0,9.707e-05,2]
[335310187,1724099162393,250.0,9.733e-05,2]
[335310188,1724099162874,250.0,9.759e-05,2]
[335310189,1724099163082,250.0,9.785e-05,2]
[335310190,1724099163352,250.0,9.812e-05,2]
[335310191,1724099163572,250.0,9.838e-05,2]
[335310192,1724099163788,250.0,9.864e-05,2]
[335310193,1724099164011,250.0,9.89e-05,2]
[335310194,1724099164263,250.0,9.917e-05,2]
[335310195,1724099164522,250.0,9.943e-05,2]
[335310196,1724099164787,250.0,9.969e-05,2]
[335310197,1724099165032,250.0,9.996e-05,2]
[335310198,1724099166265,850.86713135,9.999e-05,2]
[335310200,1724099183450,31336.29365679,9.939e-05,2]
[335310202,1724099226254,780.05358786,9.999e-05,2]
[335310203,1724099229795,35152.1669323,9.939e-05,2]
[335310204,1724099232118,-250.0,0.00010022,2]
[335310205,1724099232141,-250.0,0.00010048,2]
[335310206,1724099232164,-250.0,0.00010074,2]
[335310207,1724099232191,-51.57893933,0.0001008,2]
[335310210,1724099326427,263.05328288,9.999e-05,7]
[335310211,1724099328429,2166.25640825,9.999e-05,2]
[335310222,1724099396814,728.79489661,9.999e-05,2]
[335310227,1724099415868,639.84526611,9.999e-05,2]
[335310243,1724099431788,-154.86851392,0.00010081,2]
[335310244,1724099431802,-281.09871545,0.00010081,2]
[335310245,1724099431813,-342.65845262,0.00010081,2]
[335310246,1724099431824,-3427.989273,0.00010153,2]
[335310247,1724099431834,-300.0,0.00010259,2]
[335310248,1724099431845,-300.0,0.00010259,2]
[335310249,1724099431855,-190.07446844,0.0001026,2]
[335310250,1724099431864,-568.99410922,0.0001026,2]
[335310251,1724099431874,-3092.64278727,0.00010544,2]
[335310252,1724099431884,-223.44653164,0.00010544,2]
[335310253,1724099431894,-3092.64278727,0.00010544,2]
[335310254,1724099431903,-448.97670212,0.00010739,2]
[335310255,1724099431913,-255.24633633,0.00010958,2]
[335310256,1724099431923,-420.0,0.00011282,2]
[335310257,1724099431933,-420.0,0.00011285,2]
[335310258,1724099431942,-522.69242654,0.00011409,2]
[335310259,1724099431952,-309.18063735,0.00011409,2]
[335310260,1724099431961,-200.0,0.0001145,2]
[335310261,1724099431972,-154.88372907,0.00011621,2]
[335310262,1724099431981,-5306.26739661,0.00011687,2]
[335310263,1724099431990,-150.0,0.00011721,2]
[335310264,1724099432000,-168.12793243,0.00011999,2]
[335310265,1724099432010,-385.58223389,0.0001212,2]
[335310266,1724099432020,-694.11289231,0.00012163,2]
[335310267,1724099432033,-3714.75103021,0.00012163,2]
[335310275,1724099437850,-250.69226875,0.00010081,2]
[335310280,1724099438017,-4615.24324716,0.00010081,2]
[335310281,1724099438032,-3978.4615361,0.00010081,2]
[335310282,1724099438045,-728.56380751,0.0001212,2]
[335310283,1724099438059,-2604.54863141,0.00012163,2]
[335310284,1724099438072,-587.0,0.00012414,2]
[335310285,1724099438084,-400.0,0.0001282,2]
[335310286,1724099438096,-4762.28443892,0.000129,2]
[335310287,1724099438107,-493.30764145,0.00012971,2]
[335310288,1724099438117,-186.09602878,0.00012985,2]
[335310289,1724099438127,-301.53815771,0.00012989,2]
[335310290,1724099438137,-229.31730897,0.00012991,2]
[335310291,1724099438148,-155.99688448,0.00012991,2]
[335310292,1724099438160,-785.35333881,0.00013,2]
[335310293,1724099438174,-188.56371582,0.00013025,2]
[335310294,1724099438187,-187.92863013,0.00013051,2]
[335310295,1724099438200,-742.89275731,0.00013051,2]
[335310296,1724099438213,-174.83511409,0.00013051,2]
[335310297,1724099438226,-158.10419074,0.00013496,2]
[335310298,1724099438239,-823.0,0.00013655,2]
[335310299,1724099438256,-176.412015,0.00013699,2]
[335310300,1724099438268,-194.82337617,0.00013699,2]
[335310301,1724099438282,-20715.93667635,0.00014,4]
[335310302,1724099438295,-4873.43310846,0.00014,2]
[335310303,1724099438308,-630.101646,0.00014247,2]
[335310304,1724099438318,-168.551085,0.00014247,2]
[335310305,1724099438328,-600.0,0.00014823,2]
[335310306,1724099438338,-227.43331144,0.00015,2]
[335310307,1724099438349,-1152.0,0.00015021,2]
[335310308,1724099438359,-953.38755458,0.00015057,2]
[335310309,1724099438372,-3126.66072333,0.00015172,2]
[335310310,1724099438383,-5244.78933856,0.00015213,2]
[335310311,1724099438399,-574.18002641,0.00015272,2]
[335310312,1724099438410,-3126.66072331,0.00015459,2]
[335310313,1724099438422,-3126.66072331,0.00015745,2]
[335310314,1724099438435,-521.0,0.00015759,2]
[335310315,1724099438448,-4762.28443885,0.00015835,2]
[335310316,1724099438462,-2000.0,0.0001589,2]
[335310317,1724099438472,-306.0889,0.0001589,2]
[335310318,1724099438484,-500.0,0.00015989,2]
[335310319,1724099438495,-254.44171199,0.00015989,2]
[335310320,1724099438506,-500.0,0.00015989,2]
[335310321,1724099438518,-638.92108651,0.00015989,2]
[335310322,1724099438529,-500.0,0.00015989,2]
[335310323,1724099438542,-105206.534619,0.0001599,2]
[335310324,1724099438554,-100000.0,0.00016,2]
[335310325,1724099438566,-3126.66072331,0.00016032,2]
[335310326,1724099438577,-18127.44632758,0.00016045,2]
[335310327,1724099438594,-150.112233,0.000161,2]
[335310328,1724099438606,-52603.2673096,0.00016112,2]
[335310329,1724099438619,-2538.3763777,0.00016238,2]
[335310330,1724099438632,-150.112236,0.000163,2]
[335310331,1724099438645,-3126.66072331,0.00016318,2]
[335310332,1724099438657,-52603.2673096,0.00016328,2]
[335310333,1724099438669,-23437.93366735,0.00016336,2]
[335310334,1724099438682,-151.0,0.00016338,2]
[335310335,1724099438693,-151.0,0.00016338,2]
[335310336,1724099438705,-167.196471,0.00016338,2]
[335310337,1724099438717,-151.0,0.00016338,2]
[335310338,1724099438729,-151.0,0.00016338,2]
[335310339,1724099438743,-40000.0,0.00016338,2]
[335310340,1724099438755,-1414.0,0.00016373,2]
[335310341,1724099438768,-7726.0,0.00016373,2]
[335310342,1724099438781,-150.887,0.00016373,2]
[335310343,1724099438792,-7731.221,0.00016373,2]
[335310344,1724099438803,-150.112233,0.000164,2]
[335310345,1724099438816,-246.130222,0.00016407,2]
[335310346,1724099438829,-246.130222,0.00016407,2]
[335310347,1724099438842,-315229.42222403,0.00016407,5]
[335310348,1724099438856,-25050.03144775,0.00016408,2]
[335310362,1724099440051,-14235.6,0.00016408,2]
[335310363,1724099440066,-65920.90317125,0.00016408,2]
[335310364,1724099440077,-151.0,0.00016418,2]
[335310365,1724099440088,-151.0,0.00016418,2]
[335310366,1724099440099,-151.0,0.00016418,2]
[335310367,1724099440110,-151.0,0.00016418,2]
[335310368,1724099440120,-235.801382,0.00016418,2]
[335310369,1724099440132,-235.801382,0.00016418,2]
[335310370,1724099440144,-151.0,0.00016418,2]
[335310371,1724099440155,-151.0,0.00016418,2]
[335310372,1724099440166,-151.0,0.00016418,2]
[335310373,1724099440178,-151.0,0.00016418,2]
[335310374,1724099440191,-318.29578,0.00016418,2]
[335310375,1724099440203,-151.0,0.00016418,2]
[335310376,1724099440213,-318.29578,0.00016418,2]
[335310377,1724099440227,-151.0,0.00016418,2]
[335310378,1724099440240,-168.166061,0.00016418,2]
[335310379,1724099440252,-617.02395,0.00016418,2]
[335310380,1724099440263,-168.166061,0.00016418,2]
[335310381,1724099440276,-617.02395,0.00016418,2]
[335310382,1724099440288,-606.538,0.00016418,2]
[335310383,1724099440300,-151.0,0.00016418,2]
[335310384,1724099440311,-606.538,0.00016418,2]
[335310385,1724099440323,-151.0,0.00016418,2]
[335310386,1724099440336,-151.0,0.00016418,2]
[335310387,1724099440348,-162.029148,0.00016418,2]
[335310388,1724099440359,-183.636336,0.00016418,2]
[335310389,1724099440371,-183.636336,0.00016418,2]
[335310390,1724099440383,-274.550714,0.00016418,2]
[335310391,1724099440395,-274.550714,0.00016418,2]
[335310392,1724099440409,-153.528801,0.00016418,2]
[335310393,1724099440422,-151.0,0.00016418,2]
[335310394,1724099440433,-151.0,0.00016418,2]
[335310395,1724099440445,-151.0,0.00016418,2]
[335310396,1724099440457,-237.807709,0.00016418,2]
[335310397,1724099440469,-237.807709,0.00016418,2]
[335310398,1724099440480,-151.0,0.00016418,2]
[335310399,1724099440489,-151.0,0.00016428,2]
[335310400,1724099440499,-151.0,0.00016428,2]
[335310401,1724099440508,-151.0,0.00016428,2]
[335310402,1724099440518,-162.736936,0.00016428,2]
[335310403,1724099440527,-162.736936,0.00016428,2]
[335310404,1724099440538,-151.0,0.00016428,2]
[335310405,1724099440757,-151.0,0.00016428,2]
[335310406,1724099440772,-151.0,0.00016428,2]
[335310407,1724099440785,-151.0,0.00016428,2]
[335310408,1724099440796,-151.0,0.00016428,2]
[335310409,1724099440807,-177.300244,0.00016428,2]
[335310410,1724099440817,-177.300244,0.00016428,2]
[335310411,1724099440828,-515.01812454,0.00016438,2]
[335310412,1724099440838,-500.0,0.00016438,2]
[335310413,1724099440850,-500.0,0.00016438,2]
[335310414,1724099440861,-500.0,0.00016438,2]
[335310415,1724099440873,-500.0,0.00016438,2]
[335310416,1724099440884,-500.0,0.00016438,2]
[335310417,1724099440894,-516.32103639,0.00016438,2]
[335310418,1724099440907,-500.0,0.00016438,2]
[335310419,1724099440921,-500.0,0.00016438,2]
[335310420,1724099440930,-500.0,0.00016438,2]
[335310421,1724099440941,-500.0,0.00016438,2]
[335310422,1724099440952,-503.77217351,0.00016438,2]
[335310423,1724099440961,-500.0,0.00016438,2]
[335310424,1724099440971,-596.01,0.00016438,2]
[335310425,1724099440983,-500.0,0.00016438,2]
[335310426,1724099440994,-500.0,0.00016438,2]
[335310427,1724099441005,-500.057896,0.00016438,2]
[335310428,1724099441016,-500.0,0.00016438,2]
[335310429,1724099441027,-500.0,0.00016438,2]
[335310430,1724099441039,-523.60139331,0.00016438,2]
[335310431,1724099441048,-500.0,0.00016438,2]
[335310432,1724099441058,-500.0,0.00016438,2]
[335310433,1724099441069,-500.0,0.00016438,2]
[335310434,1724099441079,-500.0,0.00016438,2]
[335310435,1724099441089,-500.0,0.00016438,2]
[335310436,1724099441099,-500.0,0.00016438,2]
[335310437,1724099441110,-500.0,0.00016438,2]
[335310438,1724099441119,-500.0,0.00016438,2]
[335310439,1724099441128,-502.97276873,0.00016438,2]
[335310440,1724099441139,-500.0,0.00016438,2]
[335310441,1724099441150,-500.0,0.00016438,2]
[335310442,1724099441161,-500.0,0.00016438,2]
[335310443,1724099441173,-500.0,0.00016438,2]
[335310444,1724099441184,-500.0,0.00016438,2]
[335310445,1724099441195,-189.69220124,0.00016438,2]
[335310446,1724099441206,-500.0,0.00016438,2]
[335310447,1724099441215,-500.0,0.00016438,2]
[335310448,1724099441228,-500.0,0.00016438,2]
[335310449,1724099441241,-500.0,0.00016438,2]
[335310450,1724099441253,-500.0,0.00016438,2]
[335310451,1724099441263,-500.0,0.00016438,2]
[335310452,1724099441275,-518.21978141,0.00016438,2]
[335310453,1724099441287,-500.0,0.00016438,2]
[335310454,1724099441298,-500.0,0.00016438,2]
[335310455,1724099441311,-509.80356931,0.00016438,2]
[335310456,1724099441322,-500.0,0.00016438,2]
[335310457,1724099441332,-500.0,0.00016438,2]
[335310458,1724099441342,-500.0,0.00016438,2]
[335310459,1724099441353,-505.62079755,0.00016438,2]
[335310460,1724099441363,-500.0,0.00016438,2]
[335310461,1724099441374,-500.0,0.00016438,2]
[335310462,1724099441386,-514.71150401,0.00016438,2]
[335310463,1724099441397,-500.0,0.00016438,2]
[335310464,1724099441409,-500.0,0.00016438,2]
[335310465,1724099441420,-500.0,0.00016438,2]
[335310466,1724099441431,-500.0,0.00016438,2]
[335310467,1724099441441,-500.0,0.00016438,2]
[335310468,1724099441452,-500.0,0.00016438,2]
[335310469,1724099441463,-500.0,0.00016438,2]
[335310470,1724099441474,-500.0,0.00016438,2]
[335310471,1724099441486,-500.0,0.00016438,2]
[335310472,1724099441496,-500.0,0.00016438,2]
[335310473,1724099441510,-500.0,0.00016438,2]
[335310474,1724099441521,-500.0,0.00016438,2]
[335310475,1724099441532,-649.13216168,0.00016438,2]
[335310476,1724099441542,-500.0,0.00016438,2]
[335310477,1724099441551,-500.0,0.00016438,2]
[335310478,1724099441561,-500.0,0.00016438,2]
[335310479,1724099441570,-500.0,0.00016438,2]
[335310480,1724099441579,-500.0,0.00016438,2]
[335310481,1724099441589,-500.0,0.00016438,2]
[335310482,1724099441598,-500.0,0.00016438,2]
[335310483,1724099441608,-500.0,0.00016438,2]
[335310484,1724099441618,-500.0,0.00016438,2]
[335310485,1724099441628,-500.0,0.00016438,2]
[335310486,1724099441639,-944.49,0.00016438,2]
[335310487,1724099441649,-500.0,0.00016438,2]
[335310488,1724099441658,-500.0,0.00016438,2]
[335310489,1724099441667,-500.0,0.00016438,2]
[335310490,1724099441678,-500.0,0.00016438,2]
[335310491,1724099441688,-500.0,0.00016438,2]
[335310492,1724099441700,-500.0,0.00016438,2]
[335310493,1724099441709,-500.0,0.00016438,2]
[335310494,1724099441720,-500.0,0.00016438,2]
[335310495,1724099441731,-500.0,0.00016438,2]
[335310496,1724099441741,-500.0,0.00016438,2]
[335310497,1724099441752,-500.0,0.00016438,2]
[335310498,1724099441763,-500.0,0.00016438,2]
[335310499,1724099441776,-500.0,0.00016438,2]
[335310500,1724099441788,-500.0,0.00016438,2]
[335310501,1724099441799,-500.0,0.00016438,2]
[335310502,1724099441808,-500.0,0.00016438,2]
[335310503,1724099441820,-500.0,0.00016438,2]
[335310504,1724099441830,-500.0,0.00016438,2]
[335310505,1724099441840,-552.36447716,0.00016438,2]
[335310506,1724099441850,-500.0,0.00016438,2]
[335310507,1724099441862,-500.0,0.00016438,2]
[335310508,1724099441875,-500.0,0.00016438,2]
[335310509,1724099441886,-500.0,0.00016438,2]
[335310510,1724099441897,-500.0,0.00016438,2]
[335310511,1724099441909,-151.0,0.00016438,2]
[335310512,1724099441920,-500.0,0.00016438,2]
[335310513,1724099441930,-441.85528238,0.00016438,2]
[335310514,1724099441939,-500.0,0.00016438,2]
[335310515,1724099441952,-500.0,0.00016438,2]
[335310516,1724099441961,-500.0,0.00016438,2]
[335310517,1724099441971,-500.0,0.00016438,2]
[335310518,1724099441982,-500.0,0.00016438,2]
[335310519,1724099441993,-500.0,0.00016438,2]
[335310520,1724099442003,-500.0,0.00016438,2]
[335310521,1724099442012,-500.0,0.00016438,2]
[335310522,1724099442024,-500.0,0.00016438,2]
[335310523,1724099442035,-500.0,0.00016438,2]
[335310524,1724099442045,-500.0,0.00016438,2]
[335310525,1724099442056,-500.0,0.00016438,2]
[335310526,1724099442067,-500.0,0.00016438,2]
[335310527,1724099442078,-248.255568,0.00016438,2]
[335310528,1724099442088,-248.255568,0.00016438,2]
[335310529,1724099442099,-500.0,0.00016438,2]
[335310530,1724099442110,-500.0,0.00016438,2]
[335310531,1724099442122,-500.0,0.00016438,2]
[335310532,1724099442132,-500.0,0.00016438,2]
[335310533,1724099442143,-500.0,0.00016438,2]
[335310534,1724099442154,-500.0,0.00016438,2]
[335310535,1724099442164,-325.34081474,0.00016438,2]
[335310536,1724099442174,-500.0,0.00016438,2]
[335310537,1724099442186,-510.76971986,0.00016438,2]
[335310538,1724099442199,-500.0,0.00016438,2]
[335310539,1724099442208,-500.0,0.00016438,2]
[335310540,1724099442218,-500.0,0.00016438,2]
[335310541,1724099442233,-528.07046482,0.00016438,2]
[335310542,1724099442244,-1054.54,0.00016438,2]
[335310543,1724099442254,-500.0,0.00016438,2]
[335310544,1724099442266,-500.0,0.00016438,2]
[335310545,1724099442276,-500.88110826,0.00016438,2]
[335310546,1724099442288,-500.0,0.00016438,2]
[335310547,1724099442299,-500.0,0.00016438,2]
[335310548,1724099442312,-500.0,0.00016438,2]
[335310549,1724099442322,-500.0,0.00016438,2]
[335310550,1724099442332,-500.0,0.00016438,2]
[335310551,1724099442342,-500.0,0.00016438,2]
[335310552,1724099442353,-500.0,0.00016438,2]
[335310553,1724099442364,-500.0,0.00016438,2]
[335310554,1724099442376,-500.0,0.00016438,2]
[335310555,1724099442387,-500.0,0.00016438,2]
[335310556,1724099442400,-500.0,0.00016438,2]
[335310557,1724099442410,-500.0,0.00016438,2]
[335310558,1724099442422,-500.0,0.00016438,2]
[335310559,1724099442431,-500.0,0.00016438,2]
[335310560,1724099442443,-504.76171667,0.00016438,2]
[335310562,1724099442454,-500.0,0.00016438,2]
[335310564,1724099442464,-500.0,0.00016438,2]
[335310566,1724099442475,-500.0,0.00016438,2]
[335310568,1724099442488,-500.0,0.00016438,2]
[335310570,1724099442498,-500.0,0.00016438,2]
[335310572,1724099442508,-500.0,0.00016438,2]
[335310574,1724099442518,-500.0,0.00016438,2]
[335310576,1724099442529,-587.00652894,0.00016438,2]
[335310578,1724099442539,-500.0,0.00016438,2]
[335310579,1724099442549,-500.0,0.00016438,2]
[335310580,1724099442558,-500.0,0.00016438,2]
[335310582,1724099442567,-2953.47,0.00016438,2]
[335310584,1724099442577,-500.0,0.00016438,2]
[335310586,1724099442586,-500.0,0.00016438,2]
[335310588,1724099442595,-500.0,0.00016438,2]
[335310590,1724099442604,-159.02458049,0.00016438,2]
[335310592,1724099442614,-500.0,0.00016438,2]
[335310594,1724099442623,-501.7248077,0.00016438,2]
[335310595,1724099442634,-500.0,0.00016438,2]
[335310596,1724099442645,-500.0,0.00016438,2]
[335310597,1724099442655,-584.3404547,0.00016438,2]
[335310598,1724099442665,-500.0,0.00016438,2]
[335310599,1724099442676,-527.97468298,0.00016438,2]
[335310600,1724099442686,-500.0,0.00016438,2]